[Event "Titled Tuesday Blitz September 27 Late 2022"]
[White "Yoo, Christopher Woojin"]
[Black "Tristan, Leonardo"]
[WhiteFideId "30909694"]
[BlackFideId "113816"]
[WhiteElo "2105"]
[BlackElo "2404"]
[Result "1-0"]
[Round "05"]
[TimeControl "180+1"]
[Date "2022.09.27"]
[WhiteClock "0:00:16"]
[BlackClock "0:00:41"]

1. e4 {[%clk 0:02:26]}  d5 {[%clk 0:02:59]} 2. exd5 {[%clk 0:02:25]}  Qxd5 {[%clk 0:03:00]} 3. Nc3 {[%clk 0:02:25]}  Qa5 {[%clk 0:03:00]} 4. Nf3 {[%clk 0:02:25]}  Nf6 {[%clk 0:03:01]} 5. Bc4 {[%clk 0:02:24]}  Nc6 {[%clk 0:02:59]} 6. O-O {[%clk 0:02:21]}  Bg4 {[%clk 0:02:42]} 7. h3 {[%clk 0:02:21]}  Bh5 {[%clk 0:02:42]} 8. g4 {[%clk 0:01:49]}  Bg6 {[%clk 0:02:32]} 9. d3 {[%clk 0:01:21]}  h5 {[%clk 0:01:35]} 10. g5 {[%clk 0:01:18]}  Nd7 {[%clk 0:01:36]} 11. Nd5 {[%clk 0:00:48]}  Nce5 {[%clk 0:01:18]} 12. Nxe5 {[%clk 0:00:41]}  Nxe5 {[%clk 0:01:18]} 13. b4 {[%clk 0:00:41]}  Qxd5 {[%clk 0:00:52]} 14. Bxd5 {[%clk 0:00:40]}  O-O-O {[%clk 0:00:53]} 15. Bg2 {[%clk 0:00:39]}  e6 {[%clk 0:00:54]} 16. Bb2 {[%clk 0:00:38]}  Bd6 {[%clk 0:00:51]} 17. f4 {[%clk 0:00:33]}  Nd7 {[%clk 0:00:51]} 18. Qf3 {[%clk 0:00:29]}  c6 {[%clk 0:00:50]} 19. b5 {[%clk 0:00:30]}  Nb8 {[%clk 0:00:49]} 20. Bxg7 {[%clk 0:00:28]}  Rhg8 {[%clk 0:00:49]} 21. Bf6 {[%clk 0:00:29]}  Rd7 {[%clk 0:00:49]} 22. Rab1 {[%clk 0:00:28]}  Rc7 {[%clk 0:00:48]} 23. c4 {[%clk 0:00:22]}  h4 {[%clk 0:00:47]} 24. Rb3 {[%clk 0:00:19]}  Nd7 {[%clk 0:00:45]} 25. bxc6 {[%clk 0:00:19]}  bxc6 {[%clk 0:00:44]} 26. Rfb1 {[%clk 0:00:20]}  Nxf6 {[%clk 0:00:41]} 27. gxf6 {[%clk 0:00:17]}  Kd7 {[%clk 0:00:42]} 28. Rb7 {[%clk 0:00:16]}  Rc8 {[%clk 0:00:40]} 29. Qxc6+ {[%clk 0:00:16]}  Kd8 {[%clk 0:00:41]} 30. Qxd6+ {[%clk 0:00:16]}  Ke8 {[%clk 0:00:41]} 31. Bc6+ {[%clk 0:00:16]}  Rxc6 {[%clk 0:00:41]} 32. Qe7# {[%clk 0:00:16]} 1-0


[Site "https://www.chess.com"]

[Event "Titled Tuesday Blitz September 27 Late 2022"]
[White "Yurovskykh, Oleksandr"]
[Black "Carbone, Diego"]
[WhiteFideId "14134020"]
[BlackFideId "3002179"]
[WhiteElo "2303"]
[BlackElo "2205"]
[Result "1-0"]
[Round "05"]
[TimeControl "180+1"]
[Date "2022.09.28"]
[WhiteClock "0:00:11"]
[BlackClock "0:00:13"]

1. d4 {[%clk 0:02:53]}  Nf6 {[%clk 0:02:59]} 2. Nf3 {[%clk 0:02:48]}  g6 {[%clk 0:02:57]} 3. Bg5 {[%clk 0:02:48]}  Bg7 {[%clk 0:02:57]} 4. Nbd2 {[%clk 0:02:48]}  O-O {[%clk 0:02:57]} 5. c3 {[%clk 0:02:49]}  d5 {[%clk 0:02:56]} 6. e3 {[%clk 0:02:49]}  Bg4 {[%clk 0:02:45]} 7. Be2 {[%clk 0:02:49]}  Bxf3 {[%clk 0:02:44]} 8. Nxf3 {[%clk 0:02:49]}  c6 {[%clk 0:02:44]} 9. O-O {[%clk 0:02:48]}  Nbd7 {[%clk 0:02:43]} 10. Qb3 {[%clk 0:02:48]}  Qb6 {[%clk 0:02:41]} 11. h3 {[%clk 0:02:46]}  Rfe8 {[%clk 0:02:40]} 12. Bf4 {[%clk 0:02:46]}  Ne4 {[%clk 0:02:38]} 13. Rad1 {[%clk 0:02:44]}  e5 {[%clk 0:02:34]} 14. dxe5 {[%clk 0:02:44]}  Nxe5 {[%clk 0:02:34]} 15. Nxe5 {[%clk 0:02:44]}  Bxe5 {[%clk 0:02:35]} 16. Bxe5 {[%clk 0:02:45]}  Rxe5 {[%clk 0:02:35]} 17. Bf3 {[%clk 0:02:44]}  Qxb3 {[%clk 0:02:26]} 18. axb3 {[%clk 0:02:45]}  Rae8 {[%clk 0:02:26]} 19. b4 {[%clk 0:02:43]}  a6 {[%clk 0:02:25]} 20. Rd4 {[%clk 0:02:43]}  Nd6 {[%clk 0:02:24]} 21. Rfd1 {[%clk 0:02:42]}  Kg7 {[%clk 0:02:17]} 22. g3 {[%clk 0:02:41]}  g5 {[%clk 0:02:13]} 23. h4 {[%clk 0:02:40]}  h6 {[%clk 0:02:11]} 24. hxg5 {[%clk 0:02:40]}  hxg5 {[%clk 0:02:12]} 25. Bg2 {[%clk 0:02:39]}  f6 {[%clk 0:02:08]} 26. Bf1 {[%clk 0:02:34]}  Re4 {[%clk 0:01:59]} 27. R4d2 {[%clk 0:02:23]}  R4e5 {[%clk 0:01:45]} 28. Bd3 {[%clk 0:02:22]}  Ne4 {[%clk 0:01:45]} 29. Bxe4 {[%clk 0:02:22]}  Rxe4 {[%clk 0:01:45]} 30. Kg2 {[%clk 0:02:21]}  g4 {[%clk 0:01:39]} 31. Rh1 {[%clk 0:02:20]}  Rh8 {[%clk 0:01:39]} 32. Rxh8 {[%clk 0:02:19]}  Kxh8 {[%clk 0:01:40]} 33. Kf1 {[%clk 0:02:20]}  Kg7 {[%clk 0:01:39]} 34. Ke2 {[%clk 0:02:21]}  Kg6 {[%clk 0:01:39]} 35. Kd3 {[%clk 0:02:21]}  Re5 {[%clk 0:01:39]} 36. Kd4 {[%clk 0:02:21]}  Rh5 {[%clk 0:01:39]} 37. Kc5 {[%clk 0:02:21]}  Kf5 {[%clk 0:01:33]} 38. Rd4 {[%clk 0:02:20]}  Kg5 {[%clk 0:01:26]} 39. Kb6 {[%clk 0:02:20]}  Rh7 {[%clk 0:01:27]} 40. Kc5 {[%clk 0:02:09]}  Kf5 {[%clk 0:01:21]} 41. Rf4+ {[%clk 0:02:08]}  Kg5 {[%clk 0:01:21]} 42. Kd6 {[%clk 0:02:09]}  f5 {[%clk 0:01:18]} 43. Kc5 {[%clk 0:01:51]}  Kf6 {[%clk 0:01:15]} 44. c4 {[%clk 0:01:32]}  dxc4 {[%clk 0:01:14]} 45. e4 {[%clk 0:01:32]}  Rh5 {[%clk 0:01:01]} 46. Kb6 {[%clk 0:00:23]}  Ke5 {[%clk 0:00:22]} 47. exf5 {[%clk 0:00:23]}  Rxf5 {[%clk 0:00:22]} 48. Rxf5+ {[%clk 0:00:13]}  Kxf5 {[%clk 0:00:23]} 49. Kxb7 {[%clk 0:00:13]}  Ke4 {[%clk 0:00:19]} 50. Kxa6 {[%clk 0:00:11]}  Kd3 {[%clk 0:00:04]} 51. Kb6 {[%clk 0:00:02]}  Kc2 {[%clk 0:00:04]} 52. Kc5 {[%clk 0:00:03]}  Kb3 {[%clk 0:00:03]} 53. Kd4 {[%clk 0:00:01]}  Kxb4 {[%clk 0:00:03]} 54. Ke4 {[%clk 0:00:01]}  Kb3 {[%clk 0:00:04]} 55. Kd4 {[%clk 0:00:01]}  c5+ {[%clk 0:00:04]} 56. Kxc5 {[%clk 0:00:02]}  c3 {[%clk 0:00:03]} 57. bxc3 {[%clk 0:00:02]}  Kxc3 {[%clk 0:00:04]} 58. Kd5 {[%clk 0:00:02]}  Kd3 {[%clk 0:00:05]} 59. Ke5 {[%clk 0:00:03]}  Ke2 {[%clk 0:00:05]} 60. Kf4 {[%clk 0:00:03]}  Kxf2 {[%clk 0:00:05]} 61. Kxg4 {[%clk 0:00:04]}  Ke3 {[%clk 0:00:06]} 62. Kf5 {[%clk 0:00:04]}  Kf3 {[%clk 0:00:06]} 63. g4 {[%clk 0:00:05]}  Ke3 {[%clk 0:00:07]} 64. g5 {[%clk 0:00:06]}  Kd4 {[%clk 0:00:08]} 65. g6 {[%clk 0:00:07]}  Kd5 {[%clk 0:00:09]} 66. g7 {[%clk 0:00:08]}  Kd6 {[%clk 0:00:09]} 67. g8=Q {[%clk 0:00:08]}  Kd7 {[%clk 0:00:10]} 68. Qe6+ {[%clk 0:00:09]}  Kd8 {[%clk 0:00:10]} 69. Ke5 {[%clk 0:00:10]}  Kc7 {[%clk 0:00:11]} 70. Kd5 {[%clk 0:00:11]}  Kd8 {[%clk 0:00:11]} 71. Qf7 {[%clk 0:00:11]}  Kc8 {[%clk 0:00:12]} 72. Kc6 {[%clk 0:00:12]}  Kb8 {[%clk 0:00:13]} 73. Kb6 {[%clk 0:00:12]}  Ka8 {[%clk 0:00:13]} 74. Qb7# {[%clk 0:00:11]} 1-0


[Site "https://www.chess.com"]

[Event "Titled Tuesday Blitz September 27 Late 2022"]
[White "Zhigalko, Sergei"]
[Black "Wieczorek, Oskar"]
[WhiteFideId "13502956"]
[BlackFideId "1133950"]
[WhiteElo "2662"]
[BlackElo "2302"]
[Result "0-1"]
[Round "05"]
[TimeControl "180+1"]
[Date "2022.09.27"]
[WhiteClock "0:00:40"]
[BlackClock "0:01:11"]

1. e4 {[%clk 0:03:00]}  c5 {[%clk 0:03:00]} 2. Nf3 {[%clk 0:03:01]}  e6 {[%clk 0:03:00]} 3. c3 {[%clk 0:03:01]}  d5 {[%clk 0:03:00]} 4. e5 {[%clk 0:03:01]}  Nc6 {[%clk 0:02:59]} 5. d4 {[%clk 0:03:01]}  Bd7 {[%clk 0:03:00]} 6. Be2 {[%clk 0:03:01]}  f6 {[%clk 0:02:59]} 7. O-O {[%clk 0:03:01]}  fxe5 {[%clk 0:02:59]} 8. Nxe5 {[%clk 0:02:57]}  Nxe5 {[%clk 0:02:59]} 9. dxe5 {[%clk 0:02:58]}  Qc7 {[%clk 0:03:00]} 10. c4 {[%clk 0:02:57]}  d4 {[%clk 0:02:57]} 11. Re1 {[%clk 0:02:55]}  O-O-O {[%clk 0:02:56]} 12. Bd3 {[%clk 0:02:56]}  Nh6 {[%clk 0:02:55]} 13. Nd2 {[%clk 0:02:37]}  Nf7 {[%clk 0:02:55]} 14. f4 {[%clk 0:02:34]}  g5 {[%clk 0:02:43]} 15. Ne4 {[%clk 0:02:34]}  gxf4 {[%clk 0:02:36]} 16. Bxf4 {[%clk 0:02:35]}  Kb8 {[%clk 0:02:22]} 17. Qh5 {[%clk 0:02:33]}  Bc6 {[%clk 0:02:21]} 18. Nf6 {[%clk 0:02:28]}  Bg7 {[%clk 0:02:13]} 19. Bg3 {[%clk 0:02:27]}  Bh6 {[%clk 0:02:04]} 20. Rf1 {[%clk 0:02:06]}  Be3+ {[%clk 0:02:03]} 21. Kh1 {[%clk 0:02:05]}  Ng5 {[%clk 0:01:41]} 22. Rae1 {[%clk 0:01:44]}  h6 {[%clk 0:01:41]} 23. a3 {[%clk 0:01:29]}  a5 {[%clk 0:01:34]} 24. Ng4 {[%clk 0:00:59]}  Bxg2+ {[%clk 0:01:11]} 25. Kxg2 {[%clk 0:00:40]}  Qc6+ {[%clk 0:01:11]} 0-1


[Site "https://www.chess.com"]

[Event "Titled Tuesday Blitz September 27 Late 2022"]
[White "Zochowski, Kacper"]
[Black "Noboa Silva, Kevin"]
[WhiteFideId "1125494"]
[BlackFideId "3618471"]
[WhiteElo "2214"]
[BlackElo "2172"]
[Result "1-0"]
[Round "05"]
[TimeControl "180+1"]
[Date "2022.09.28"]
[WhiteClock "0:00:14"]
[BlackClock "0:00:01"]

1. Nf3 {[%clk 0:02:59]}  Nf6 {[%clk 0:02:54]} 2. c4 {[%clk 0:02:59]}  c5 {[%clk 0:02:53]} 3. g3 {[%clk 0:02:59]}  b6 {[%clk 0:02:53]} 4. Bg2 {[%clk 0:02:59]}  Bb7 {[%clk 0:02:53]} 5. O-O {[%clk 0:03:00]}  e6 {[%clk 0:02:53]} 6. b3 {[%clk 0:03:01]}  d6 {[%clk 0:02:52]} 7. e3 {[%clk 0:03:01]}  a6 {[%clk 0:02:52]} 8. Bb2 {[%clk 0:03:02]}  Nbd7 {[%clk 0:02:52]} 9. Qe2 {[%clk 0:03:03]}  Be7 {[%clk 0:02:52]} 10. Nc3 {[%clk 0:03:04]}  O-O {[%clk 0:02:52]} 11. d3 {[%clk 0:03:04]}  Re8 {[%clk 0:02:52]} 12. Rac1 {[%clk 0:03:05]}  Qc7 {[%clk 0:02:53]} 13. Rfd1 {[%clk 0:03:06]}  Rac8 {[%clk 0:02:53]} 14. h3 {[%clk 0:03:06]}  Qb8 {[%clk 0:02:53]} 15. g4 {[%clk 0:03:07]}  b5 {[%clk 0:02:51]} 16. Ne1 {[%clk 0:03:04]}  b4 {[%clk 0:02:48]} 17. Ne4 {[%clk 0:02:58]}  Nxe4 {[%clk 0:02:47]} 18. Bxe4 {[%clk 0:02:56]}  Bf6 {[%clk 0:02:46]} 19. Bxf6 {[%clk 0:02:51]}  Nxf6 {[%clk 0:02:46]} 20. Bxb7 {[%clk 0:02:47]}  Qxb7 {[%clk 0:02:46]} 21. g5 {[%clk 0:02:48]}  Nd7 {[%clk 0:02:46]} 22. f4 {[%clk 0:02:49]}  e5 {[%clk 0:02:38]} 23. f5 {[%clk 0:02:48]}  e4 {[%clk 0:02:30]} 24. d4 {[%clk 0:02:49]}  cxd4 {[%clk 0:02:27]} 25. Rxd4 {[%clk 0:02:46]}  Re5 {[%clk 0:02:24]} 26. Qg4 {[%clk 0:02:43]}  Rcc5 {[%clk 0:01:46]} 27. Rxd6 {[%clk 0:02:24]}  Rxf5 {[%clk 0:01:37]} 28. h4 {[%clk 0:02:21]}  g6 {[%clk 0:01:37]} 29. Rd4 {[%clk 0:02:04]}  Rce5 {[%clk 0:01:31]} 30. Rcd1 {[%clk 0:02:00]}  Nc5 {[%clk 0:01:31]} 31. Ng2 {[%clk 0:01:34]}  Ne6 {[%clk 0:01:18]} 32. Rd6 {[%clk 0:01:26]}  Qa7 {[%clk 0:01:12]} 33. Kh1 {[%clk 0:01:20]}  Rf3 {[%clk 0:00:43]} 34. R6d5 {[%clk 0:00:50]}  Qc7 {[%clk 0:00:33]} 35. Rd7 {[%clk 0:00:36]}  Qb8 {[%clk 0:00:23]} 36. Nf4 {[%clk 0:00:33]}  Qb6 {[%clk 0:00:14]} 37. Nh5 {[%clk 0:00:15]}  gxh5 {[%clk 0:00:13]} 38. Qxh5 {[%clk 0:00:16]}  Nf8 {[%clk 0:00:10]} 39. Rd8 {[%clk 0:00:15]}  Qg6 {[%clk 0:00:10]} 40. Qg4 {[%clk 0:00:14]}  Rff5 {[%clk 0:00:10]} 41. Rc8 {[%clk 0:00:12]}  h5 {[%clk 0:00:09]} 42. Qg2 {[%clk 0:00:11]}  Rc5 {[%clk 0:00:09]} 43. Ra8 {[%clk 0:00:10]}  Rf3 {[%clk 0:00:03]} 44. Rdd8 {[%clk 0:00:10]}  Qg7 {[%clk 0:00:04]} 45. Rxf8+ {[%clk 0:00:10]}  Qxf8 {[%clk 0:00:04]} 46. Rxf8+ {[%clk 0:00:11]}  Kxf8 {[%clk 0:00:05]} 47. Qd2 {[%clk 0:00:12]}  Rcf5 {[%clk 0:00:05]} 48. Qd6+ {[%clk 0:00:11]}  Kg7 {[%clk 0:00:05]} 49. Qd4+ {[%clk 0:00:11]}  Kg8 {[%clk 0:00:05]} 50. Qxe4 {[%clk 0:00:12]}  Rf1+ {[%clk 0:00:05]} 51. Kg2 {[%clk 0:00:13]}  R1f2+ {[%clk 0:00:05]} 52. Kg3 {[%clk 0:00:13]}  Kg7 {[%clk 0:00:04]} 53. c5 {[%clk 0:00:13]}  Rf1 {[%clk 0:00:04]} 54. c6 {[%clk 0:00:12]}  R5f2 {[%clk 0:00:04]} 55. c7 {[%clk 0:00:11]}  Rc1 {[%clk 0:00:03]} 56. Qe5+ {[%clk 0:00:12]}  Kg6 {[%clk 0:00:03]} 57. Kxf2 {[%clk 0:00:12]}  Rc2+ {[%clk 0:00:03]} 58. Kf3 {[%clk 0:00:12]}  Rc1 {[%clk 0:00:01]} 59. Qf6+ {[%clk 0:00:12]}  Kh7 {[%clk 0:00:02]} 60. Qd8 {[%clk 0:00:13]}  a5 {[%clk 0:00:01]} 61. c8=Q {[%clk 0:00:14]} 1-0


[Site "https://www.chess.com"]

[Event "Titled Tuesday Blitz September 27 Late 2022"]
[White "Amburgy, Ryan"]
[Black "Lenderman, Aleksandr"]
[WhiteFideId "30924820"]
[BlackFideId "2021285"]
[WhiteElo "2066"]
[BlackElo "2607"]
[Result "0-1"]
[Round "06"]
[TimeControl "180+1"]
[Date "2022.09.27"]
[WhiteClock "0:00:06"]
[BlackClock "0:01:35"]

1. d4 {[%clk 0:03:00]}  d5 {[%clk 0:03:00]} 2. Nc3 {[%clk 0:03:01]}  Nf6 {[%clk 0:02:53]} 3. Bf4 {[%clk 0:03:01]}  c5 {[%clk 0:02:51]} 4. e4 {[%clk 0:03:00]}  Nxe4 {[%clk 0:02:48]} 5. Nxe4 {[%clk 0:03:00]}  dxe4 {[%clk 0:02:48]} 6. dxc5 {[%clk 0:03:01]}  Qxd1+ {[%clk 0:02:46]} 7. Rxd1 {[%clk 0:03:01]}  Nc6 {[%clk 0:02:46]} 8. Bb5 {[%clk 0:02:54]}  Bd7 {[%clk 0:02:45]} 9. Ne2 {[%clk 0:02:44]}  f6 {[%clk 0:02:36]} 10. c3 {[%clk 0:02:38]}  e5 {[%clk 0:02:36]} 11. Be3 {[%clk 0:02:39]}  f5 {[%clk 0:02:35]} 12. g3 {[%clk 0:02:38]}  Be6 {[%clk 0:02:30]} 13. Nc1 {[%clk 0:02:02]}  Be7 {[%clk 0:02:27]} 14. h4 {[%clk 0:02:01]}  O-O {[%clk 0:02:26]} 15. Bg5 {[%clk 0:01:10]}  Bxc5 {[%clk 0:02:24]} 16. b4 {[%clk 0:01:10]}  Bb6 {[%clk 0:02:19]} 17. Rd6 {[%clk 0:01:10]}  Rae8 {[%clk 0:02:19]} 18. Rxe6 {[%clk 0:00:42]}  Rxe6 {[%clk 0:02:18]} 19. Bc4 {[%clk 0:00:42]}  Kf7 {[%clk 0:02:17]} 20. Nb3 {[%clk 0:00:38]}  h6 {[%clk 0:02:17]} 21. Be3 {[%clk 0:00:37]}  Kf6 {[%clk 0:02:17]} 22. Bxb6 {[%clk 0:00:36]}  axb6 {[%clk 0:02:17]} 23. Bxe6 {[%clk 0:00:37]}  Kxe6 {[%clk 0:02:18]} 24. Kd2 {[%clk 0:00:32]}  Ra8 {[%clk 0:02:17]} 25. Nc1 {[%clk 0:00:33]}  Ne7 {[%clk 0:02:15]} 26. Kc2 {[%clk 0:00:32]}  Nd5 {[%clk 0:02:15]} 27. Kb2 {[%clk 0:00:31]}  b5 {[%clk 0:02:15]} 28. Rd1 {[%clk 0:00:31]}  Rc8 {[%clk 0:02:13]} 29. Ne2 {[%clk 0:00:31]}  Nb6 {[%clk 0:02:11]} 30. Kb3 {[%clk 0:00:26]}  Nc4 {[%clk 0:02:10]} 31. Ra1 {[%clk 0:00:17]}  Nb6 {[%clk 0:01:58]} 32. Rd1 {[%clk 0:00:15]}  Ra8 {[%clk 0:01:58]} 33. Kb2 {[%clk 0:00:05]}  Nc4+ {[%clk 0:01:57]} 34. Kb1 {[%clk 0:00:06]}  Rh8 {[%clk 0:01:51]} 35. Kc2 {[%clk 0:00:03]}  g5 {[%clk 0:01:50]} 36. h5 {[%clk 0:00:04]}  f4 {[%clk 0:01:40]} 37. gxf4 {[%clk 0:00:05]}  gxf4 {[%clk 0:01:40]} 38. Rg1 {[%clk 0:00:06]}  Rd8 {[%clk 0:01:40]} 39. Rg6+ {[%clk 0:00:06]}  Kf5 {[%clk 0:01:40]} 40. Nc1 {[%clk 0:00:05]}  Rd2+ {[%clk 0:01:40]} 41. Kb1 {[%clk 0:00:06]}  Rb2+ {[%clk 0:01:37]} 42. Ka1 {[%clk 0:00:07]}  Rxf2 {[%clk 0:01:35]} 43. Rxh6 {[%clk 0:00:07]}  e3 {[%clk 0:01:34]} 44. Rg6 {[%clk 0:00:06]}  Rf1 {[%clk 0:01:34]} 45. Kb1 {[%clk 0:00:06]}  e2 {[%clk 0:01:35]} 0-1


[Site "https://www.chess.com"]

[Event "Titled Tuesday Blitz September 27 Late 2022"]
[White "Bispo, Leonardo"]
[Black "Paravyan, David"]
[WhiteFideId "2107899"]
[BlackFideId "4194985"]
[WhiteElo "2253"]
[BlackElo "2555"]
[Result "1-0"]
[Round "06"]
[TimeControl "180+1"]
[Date "2022.09.27"]
[WhiteClock "0:00:34"]
[BlackClock "0:00:02"]

1. d4 {[%clk 0:02:58]}  d6 {[%clk 0:02:54]} 2. Nf3 {[%clk 0:02:59]}  Nf6 {[%clk 0:02:54]} 3. c4 {[%clk 0:02:59]}  g6 {[%clk 0:02:54]} 4. g3 {[%clk 0:03:00]}  Bg7 {[%clk 0:02:51]} 5. b3 {[%clk 0:03:00]}  Ne4 {[%clk 0:02:50]} 6. Bb2 {[%clk 0:03:00]}  Nc6 {[%clk 0:02:39]} 7. Bg2 {[%clk 0:03:00]}  h5 {[%clk 0:02:38]} 8. Nbd2 {[%clk 0:02:59]}  Bf5 {[%clk 0:02:33]} 9. Nh4 {[%clk 0:02:59]}  d5 {[%clk 0:02:14]} 10. Nxf5 {[%clk 0:02:58]}  gxf5 {[%clk 0:02:14]} 11. Nxe4 {[%clk 0:02:58]}  fxe4 {[%clk 0:02:08]} 12. cxd5 {[%clk 0:02:50]}  Qxd5 {[%clk 0:02:07]} 13. e3 {[%clk 0:02:50]}  h4 {[%clk 0:02:01]} 14. Qg4 {[%clk 0:02:43]}  Qa5+ {[%clk 0:01:58]} 15. Kf1 {[%clk 0:02:40]}  O-O {[%clk 0:01:29]} 16. gxh4 {[%clk 0:02:30]}  f5 {[%clk 0:01:28]} 17. Qe2 {[%clk 0:02:25]}  Rad8 {[%clk 0:01:21]} 18. a3 {[%clk 0:02:17]}  e5 {[%clk 0:01:21]} 19. b4 {[%clk 0:02:17]}  Qd5 {[%clk 0:01:20]} 20. b5 {[%clk 0:02:10]}  Na5 {[%clk 0:01:12]} 21. Rd1 {[%clk 0:01:49]}  Nc4 {[%clk 0:01:11]} 22. Ba1 {[%clk 0:01:48]}  Qxb5 {[%clk 0:01:10]} 23. Kg1 {[%clk 0:01:38]}  Nxa3 {[%clk 0:01:06]} 24. Qa2+ {[%clk 0:01:38]}  Kh8 {[%clk 0:00:51]} 25. Qxa3 {[%clk 0:01:37]}  f4 {[%clk 0:00:52]} 26. exf4 {[%clk 0:01:34]}  Rxf4 {[%clk 0:00:49]} 27. Qe3 {[%clk 0:00:51]}  Rxh4 {[%clk 0:00:26]} 28. h3 {[%clk 0:00:44]}  Qa4 {[%clk 0:00:12]} 29. Rf1 {[%clk 0:00:37]}  exd4 {[%clk 0:00:11]} 30. Qg5 {[%clk 0:00:37]}  Re8 {[%clk 0:00:02]} 31. Qxh4+ {[%clk 0:00:35]}  Kg8 {[%clk 0:00:02]} 32. Bxe4 {[%clk 0:00:34]} 1-0


[Site "https://www.chess.com"]

[Event "Titled Tuesday Blitz September 27 Late 2022"]
[White "Boros, Denes"]
[Black "Petrosyan, Manuel"]
[WhiteFideId "722340"]
[BlackFideId "13300857"]
[WhiteElo "2464"]
[BlackElo "2592"]
[Result "1-0"]
[Round "06"]
[TimeControl "180+1"]
[Date "2022.09.27"]
[WhiteClock "0:00:16"]
[BlackClock "0:00:01"]

1. e4 {[%clk 0:03:00]}  e5 {[%clk 0:02:56]} 2. Nc3 {[%clk 0:03:00]}  Nf6 {[%clk 0:02:54]} 3. Nge2 {[%clk 0:03:01]}  Bb4 {[%clk 0:02:41]} 4. a3 {[%clk 0:02:54]}  Ba5 {[%clk 0:02:41]} 5. g3 {[%clk 0:02:53]}  O-O {[%clk 0:02:38]} 6. Bg2 {[%clk 0:02:53]}  c6 {[%clk 0:02:38]} 7. O-O {[%clk 0:02:50]}  Re8 {[%clk 0:02:35]} 8. d3 {[%clk 0:02:47]}  h6 {[%clk 0:02:34]} 9. h3 {[%clk 0:02:35]}  d5 {[%clk 0:02:33]} 10. b4 {[%clk 0:02:35]}  Bb6 {[%clk 0:02:24]} 11. exd5 {[%clk 0:02:35]}  cxd5 {[%clk 0:02:24]} 12. Na4 {[%clk 0:02:35]}  Bc7 {[%clk 0:02:23]} 13. Bb2 {[%clk 0:02:32]}  a6 {[%clk 0:02:06]} 14. Nc5 {[%clk 0:02:25]}  b6 {[%clk 0:02:01]} 15. Nb3 {[%clk 0:02:25]}  Bb7 {[%clk 0:01:56]} 16. c4 {[%clk 0:02:23]}  Nc6 {[%clk 0:01:53]} 17. Nc3 {[%clk 0:02:12]}  Nd4 {[%clk 0:01:35]} 18. Rc1 {[%clk 0:01:53]}  Rc8 {[%clk 0:01:19]} 19. Nxd4 {[%clk 0:01:46]}  exd4 {[%clk 0:01:20]} 20. Ne2 {[%clk 0:01:43]}  Ba8 {[%clk 0:00:47]} 21. c5 {[%clk 0:01:28]}  bxc5 {[%clk 0:00:47]} 22. Rxc5 {[%clk 0:01:26]}  Bb6 {[%clk 0:00:30]} 23. Rxc8 {[%clk 0:01:22]}  Qxc8 {[%clk 0:00:31]} 24. Nxd4 {[%clk 0:01:20]}  a5 {[%clk 0:00:24]} 25. Qd2 {[%clk 0:01:15]}  axb4 {[%clk 0:00:22]} 26. axb4 {[%clk 0:01:16]}  Qd7 {[%clk 0:00:20]} 27. Ra1 {[%clk 0:00:55]}  Bb7 {[%clk 0:00:20]} 28. Qf4 {[%clk 0:00:55]}  Bc7 {[%clk 0:00:18]} 29. Qf3 {[%clk 0:00:52]}  Be5 {[%clk 0:00:17]} 30. Qd1 {[%clk 0:00:41]}  Qd8 {[%clk 0:00:13]} 31. Qd2 {[%clk 0:00:39]}  Qb6 {[%clk 0:00:13]} 32. Nf5 {[%clk 0:00:39]}  Bc8 {[%clk 0:00:09]} 33. Bxe5 {[%clk 0:00:35]}  Rxe5 {[%clk 0:00:10]} 34. Qc3 {[%clk 0:00:31]}  Re8 {[%clk 0:00:03]} 35. Nd4 {[%clk 0:00:32]}  Bd7 {[%clk 0:00:03]} 36. b5 {[%clk 0:00:32]}  Rc8 {[%clk 0:00:03]} 37. Qb4 {[%clk 0:00:30]}  Rb8 {[%clk 0:00:03]} 38. Re1 {[%clk 0:00:27]}  h5 {[%clk 0:00:03]} 39. Rc1 {[%clk 0:00:22]}  h4 {[%clk 0:00:02]} 40. g4 {[%clk 0:00:22]}  Be8 {[%clk 0:00:03]} 41. Qc5 {[%clk 0:00:20]}  Qd8 {[%clk 0:00:02]} 42. Rb1 {[%clk 0:00:19]}  Nd7 {[%clk 0:00:02]} 43. Qxd5 {[%clk 0:00:19]}  Qf6 {[%clk 0:00:02]} 44. Nc6 {[%clk 0:00:17]}  Nb6 {[%clk 0:00:01]} 45. Qe4 {[%clk 0:00:16]}  Rc8 {[%clk 0:00:01]} 46. Ne7+ {[%clk 0:00:16]} 1-0


[Site "https://www.chess.com"]

[Event "Titled Tuesday Blitz September 27 Late 2022"]
[White "Bryakin, Mikhail"]
[Black "Azaiez, Fahmi"]
[WhiteFideId "4165314"]
[BlackFideId "5500818"]
[WhiteElo "2357"]
[BlackElo "2511"]
[Result "1-0"]
[Round "06"]
[TimeControl "180+1"]
[Date "2022.09.27"]
[WhiteClock "0:02:16"]
[BlackClock "0:01:24"]

1. c4 {[%clk 0:03:00]}  e5 {[%clk 0:02:58]} 2. Nc3 {[%clk 0:03:00]}  Nc6 {[%clk 0:02:58]} 3. g3 {[%clk 0:03:00]}  f5 {[%clk 0:02:56]} 4. Bg2 {[%clk 0:03:00]}  Nf6 {[%clk 0:02:56]} 5. d3 {[%clk 0:02:59]}  Bb4 {[%clk 0:02:54]} 6. Bd2 {[%clk 0:02:59]}  d6 {[%clk 0:02:52]} 7. a3 {[%clk 0:02:59]}  Bxc3 {[%clk 0:02:31]} 8. Bxc3 {[%clk 0:03:00]}  O-O {[%clk 0:02:29]} 9. Nf3 {[%clk 0:02:58]}  Qe8 {[%clk 0:02:25]} 10. O-O {[%clk 0:02:56]}  Qh5 {[%clk 0:02:22]} 11. b4 {[%clk 0:02:56]}  f4 {[%clk 0:02:20]} 12. e3 {[%clk 0:02:37]}  Bg4 {[%clk 0:01:56]} 13. exf4 {[%clk 0:02:36]}  exf4 {[%clk 0:01:54]} 14. d4 {[%clk 0:02:36]}  Rae8 {[%clk 0:01:47]} 15. Qd3 {[%clk 0:02:34]}  Bf5 {[%clk 0:01:42]} 16. Qd1 {[%clk 0:02:33]}  Bg4 {[%clk 0:01:39]} 17. b5 {[%clk 0:02:28]}  Ne7 {[%clk 0:01:37]} 18. Qd3 {[%clk 0:02:26]}  Bf5 {[%clk 0:01:34]} 19. Qd2 {[%clk 0:02:20]}  Ne4 {[%clk 0:01:26]} 20. Qc1 {[%clk 0:02:20]}  Bg4 {[%clk 0:01:24]} 21. Nd2 {[%clk 0:02:16]} 1-0


[Site "https://www.chess.com"]